[Event "44th Chess Olympiad Women 2022"]
[Site "Chennai"]
[Date "2022.08.07"]
[Round "9.7"]
[White "Sukandar, Irine Kharisma"]
[Black "Vega Gutierrez, Sabrina"]
[Result "1/2-1/2"]
[WhiteElo "2373"]
[BlackElo "2366"]
[Annotator "RC"]
[PlyCount "75"]
[EventDate "2022.??.??"]
[TimeControl "60"]

1. e4 {[%emt 0:00:11]} c5 {[%emt 0:00:06]} 2. Nf3 {[%emt 0:00:24]} e6 {[%emt 0:
00:00]} 3. d4 {[%emt 0:00:51]} cxd4 {[%emt 0:00:08]} 4. Nxd4 {[%emt 0:00:05]}
Nf6 {[%emt 0:00:07]} 5. Nc3 {[%emt 0:00:38]} Nc6 {[%emt 0:00:08]} 6. Nxc6 {
[%emt 0:01:51]} bxc6 {[%emt 0:00:08]} 7. e5 {[%emt 0:00:20]} Nd5 {[%emt 0:00:
00]} 8. Ne4 {[%emt 0:00:23]} Qc7 {[%emt 0:00:13]} 9. f4 {[%emt 0:00:28]} Qb6 {
[%emt 0:00:13]} 10. c4 {[%emt 0:00:24]} Bb4+ {[%emt 0:00:16]} 11. Ke2 {[%emt 0:
00:00]} f5 {[%emt 0:00:32]} 12. exf6 {[%emt 0:00:29]} Nxf6 {[%emt 0:00:47]} 13.
Be3 {[%emt 0:00:34]} Qd8 {[%emt 0:13:37]} 14. Nd6+ {[%emt 0:00:25]} Bxd6 {
[%emt 0:00:05]} 15. Qxd6 {[%emt 0:00:04]} Bb7 {[%emt 0:01:46]} 16. Rd1 {
[%emt 0:00:20]} Rf8 {[%emt 0:06:53]} 17. Rg1 {[%emt 0:06:27]} Rc8 {[%emt 0:00:
00]} 18. g4 {[%emt 0:02:17]} c5 {[%emt 0:00:08]} 19. f5 {[%emt 0:03:33]} Ne4 {
[%emt 0:12:56]} 20. Qe5 {[%emt 0:02:37]} Qf6 {[%emt 0:03:25]} 21. Qxf6 {
[%emt 0:01:27]} Rxf6 {[%emt 0:00:25]} 22. fxe6 {[%emt 0:13:38]} Rxe6 {[%emt 0:
00:00]} 23. Bg2 {[%emt 0:03:49]} Ba6 {[%emt 0:04:07]} 24. Bxe4 {[%emt 0:06:56]}
Rxe4 {[%emt 0:00:06]} 25. b3 {[%emt 0:00:10]} Rc6 {[%emt 0:01:25]} 26. Kf3 {
[%emt 0:02:18]} Re7 {[%emt 0:00:38]} 27. Bg5 {[%emt 0:10:11]} Ree6 {[%emt 0:00:
00]} 28. Rge1 {[%emt 0:01:14]} Bb7 {[%emt 0:00:17]} 29. Kg3 {[%emt 0:00:48]} h6
{[%emt 0:04:56]} 30. Bf4 {[%emt 0:02:19]} Rxe1 {[%emt 0:19:10]} 31. Rxe1+ {
[%emt 0:00:05]} Kf7 {[%emt 0:00:23]} 32. Rf1 {[%emt 0:03:37]} Rf6 {[%emt 0:00:
00]} 33. Rd1 {[%emt 0:00:36]} Bc6 {[%emt 0:05:12]} 34. h4 {[%emt 0:05:00]} Re6
{[%emt 0:02:12]} 35. Rd2 {[%emt 0:04:15]} Ke7 {[%emt 0:00:23]} 36. Kf2 {
[%emt 0:01:28]} a6 {[%emt 0:00:25]} 37. Kg3 {[%emt 0:02:11]} d6 {[%emt 0:02:31]
} 38. Kf2 {[%emt 0:02:16]} 1/2-1/2

[Event "44th Chess Olympiad Women 2022"]
[Site "Chennai"]
[Date "2022.08.07"]
[Round "9.8"]
[White "Cramling Bellon, Anna"]
[Black "Ratsma, Rosa"]
[Result "1/2-1/2"]
[WhiteElo "2065"]
[BlackElo "2226"]
[Annotator "RC"]
[PlyCount "131"]
[EventDate "2022.??.??"]
[TimeControl "60"]

1. d4 {[%emt 0:00:04]} Nf6 {[%emt 0:00:10]} 2. c4 {[%emt 0:00:06]} e6 {[%emt 0:
00:00]} 3. a3 {[%emt 0:00:37]} d5 {[%emt 0:01:56]} 4. cxd5 {[%emt 0:00:35]}
exd5 {[%emt 0:00:17]} 5. Nc3 {[%emt 0:06:25]} c6 {[%emt 0:01:26]} 6. Bf4 {
[%emt 0:01:00]} Bf5 {[%emt 0:07:00]} 7. e3 {[%emt 0:00:23]} Bd6 {[%emt 0:04:12]
} 8. Be5 {[%emt 0:20:13]} Bxe5 {[%emt 0:07:40]} 9. dxe5 {[%emt 0:00:05]} Ng4 {
[%emt 0:01:18]} 10. Qd4 {[%emt 0:07:23]} Qe7 {[%emt 0:15:59]} 11. Nf3 {[%emt 0:
00:00]} Nd7 {[%emt 0:03:38]} 12. Qf4 {[%emt 0:00:07]} g6 {[%emt 0:02:03]} 13.
Nd4 {[%emt 0:07:32]} Qxe5 {[%emt 0:02:05]} 14. h3 {[%emt 0:03:56]} Qxf4 {
[%emt 0:09:53]} 15. exf4 {[%emt 0:00:16]} Nh6 {[%emt 0:00:36]} 16. g4 {[%emt 0:
00:00]} Be6 {[%emt 0:00:58]} 17. Bd3 {[%emt 0:08:29]} Nc5 {[%emt 0:03:36]} 18.
Bc2 {[%emt 0:00:05]} Bd7 {[%emt 0:02:58]} 19. O-O-O {[%emt 0:02:31]} O-O-O {
[%emt 0:02:53]} 20. f5 {[%emt 0:02:12]} Kc7 {[%emt 0:09:10]} 21. b4 {[%emt 0:
00:00]} Na6 {[%emt 0:00:50]} 22. Rhe1 {[%emt 0:03:04]} Rhe8 {[%emt 0:01:35]}
23. f6 {[%emt 0:04:01]} Nb8 {[%emt 0:05:45]} 24. Ndb5+ {[%emt 0:07:26]} cxb5 {
[%emt 0:09:54]} 25. Nxd5+ {[%emt 0:00:02]} Kc8 {[%emt 0:01:41]} 26. Ne7+ {
[%emt 0:00:18]} Rxe7 {[%emt 0:01:25]} 27. Rxe7 {[%emt 0:00:05]} Nc6 {[%emt 0:
00:00]} 28. Re3 {[%emt 0:00:15]} Be6 {[%emt 0:01:19]} 29. Rxd8+ {[%emt 0:01:34]
} Kxd8 {[%emt 0:00:11]} 30. f4 {[%emt 0:00:42]} a6 {[%emt 0:01:12]} 31. f5 {
[%emt 0:00:54]} gxf5 {[%emt 0:01:53]} 32. g5 {[%emt 0:00:09]} Kd7 {[%emt 0:00:
00]} 33. gxh6 {[%emt 0:00:16]} Kd6 {[%emt 0:00:22]} 34. Kd2 {[%emt 0:01:41]}
Ne5 {[%emt 0:00:17]} 35. Kc3 {[%emt 0:00:10]} Nd7 {[%emt 0:00:21]} 36. Kd4 {
[%emt 0:00:43]} Nxf6 {[%emt 0:00:44]} 37. Rf3 {[%emt 0:00:07]} Ng8 {[%emt 0:00:
00]} 38. Bxf5 {[%emt 0:00:11]} Nxh6 {[%emt 0:00:33]} 39. Bxh7 {[%emt 0:00:56]}
f5 {[%emt 0:00:26]} 40. Rf4 {[%emt 0:00:47]} Bd7 {[%emt 0:00:24]} 41. Rh4 {
[%emt 0:07:23]} Nf7 {[%emt 0:00:12]} 42. Rh5 {[%emt 0:00:47]} f4 {[%emt 0:00:
00]} 43. Ke4 {[%emt 0:02:35]} Bxh3 {[%emt 0:04:44]} 44. Kxf4 {[%emt 0:09:03]}
Bf1 {[%emt 0:08:12]} 45. Be4 {[%emt 0:10:52]} b6 {[%emt 0:02:52]} 46. Rd5+ {
[%emt 0:02:09]} Kc7 {[%emt 0:02:40]} 47. Bf5 {[%emt 0:00:52]} Nd6 {[%emt 0:00:
00]} 48. Rd1 {[%emt 0:00:08]} Bc4 {[%emt 0:02:06]} 49. Ke5 {[%emt 0:00:06]}
Nxf5 {[%emt 0:05:55]} 50. Kxf5 {[%emt 0:00:05]} Kc6 {[%emt 0:00:26]} 51. Ke5 {
[%emt 0:00:14]} a5 {[%emt 0:01:08]} 52. Rd6+ {[%emt 0:01:19]} Kc7 {[%emt 0:00:
00]} 53. Rh6 {[%emt 0:01:13]} axb4 {[%emt 0:00:31]} 54. axb4 {[%emt 0:00:03]}
Bb3 {[%emt 0:00:27]} 55. Kd4 {[%emt 0:00:42]} Bc4 {[%emt 0:00:32]} 56. Rh5 {
[%emt 0:00:26]} Kd6 {[%emt 0:00:45]} 57. Rf5 {[%emt 0:00:25]} Ke6 {[%emt 0:00:
00]} 58. Rg5 {[%emt 0:00:54]} Kd6 {[%emt 0:00:09]} 59. Rg7 {[%emt 0:00:26]} Bb3
{[%emt 0:00:36]} 60. Rg6+ {[%emt 0:00:15]} Kc7 {[%emt 0:00:09]} 61. Ke5 {
[%emt 0:00:27]} Bc4 {[%emt 0:00:19]} 62. Rg7+ {[%emt 0:00:27]} Kc6 {[%emt 0:00:
00]} 63. Ra7 {[%emt 0:00:05]} Bb3 {[%emt 0:00:31]} 64. Ra3 {[%emt 0:00:44]} Bc4
{[%emt 0:01:22]} 65. Rc3 {[%emt 0:00:04]} Kd7 {[%emt 0:01:02]} 66. Rg3 {
[%emt 0:00:29]} 1/2-1/2

[Event "44th Chess Olympiad Women 2022"]
[Site "Chennai"]
[Date "2022.08.07"]
[Round "9.8"]
[White "Cramling, Pia"]
[Black "Roebers, Eline"]
[Result "1-0"]
[WhiteElo "2459"]
[BlackElo "2344"]
[Annotator "TA"]
[PlyCount "73"]
[EventDate "2022.??.??"]
[TimeControl "60"]

{[%evp 15,73,33,25,25,31,27,29,26,34,27,41,23,17,15,16,0,3,11,21,0,24,17,33,12,
9,13,25,37,74,-8,29,27,37,18,16,0,0,4,126,120,142,148,151,147,180,185,196,200,
234,257,386,387,386,363,657,637,919,463,995,827]} 1. d4 {[%emt 0:00:16]} f5 {
[%emt 0:00:39]} 2. g3 {[%emt 0:00:24]} Nf6 {[%emt 0:00:13]} 3. Bg2 {[%emt 0:00:
00]} g6 {[%emt 0:00:08]} 4. Nf3 {[%emt 0:01:05][%cal Yg1f3,Yf3e1,Ye1d3]} Bg7 {
[%emt 0:00:09]} 5. O-O {[%emt 0:00:13]} O-O {[%emt 0:00:07]} 6. b3 {[%emt 0:00:
06]} d6 {[%emt 0:00:55]} 7. Bb2 {[%emt 0:00:06]} Ne4 {[%emt 0:00:37]} 8. Nbd2 {
[%emt 0:00:49]} Nc6 {[%emt 0:00:14]} 9. Ne1 {[%emt 0:02:07] A81: Dutch Defence:
2 g3.} Ng5 {[%emt 0:00:20]} 10. f4 {[%emt 0:02:28]} Nf7 {[%emt 0:00:21]} 11.
Nc4 {[%emt 0:00:44] White has an edge.} e6 {[%emt 0:01:15]} 12. e3 {[%emt 0:00:
32]} Rb8 {[%emt 0:00:43]} 13. a4 {[%emt 0:02:20]} Ne7 {[%emt 0:02:08]} 14. Nd3
{[%emt 0:06:22]} b6 {[%emt 0:01:18]} 15. Qe2 {[%emt 0:00:00]} Bb7 {[%emt 0:01:
28]} 16. Bxb7 {[%emt 0:01:49]} Rxb7 {[%emt 0:00:05]} 17. Nd2 {[%emt 0:01:49] 
[#]} Rb8 $146 {[%emt 0:03:34]} ({Predecessor:} 17... Qd7 18. Nf3 Nd5 19. c4 Nf6
20. Rad1 a6 21. Nde5 Qe8 22. Nxf7 Rxf7 23. Nd2 b5 24. axb5 axb5 {1-0 (65)
Artemiev,V (2697)-Kobalia,M (2590) Obninsk 2022}) 18. Nf3 {[%emt 0:01:24]} Re8
{[%emt 0:17:00]} 19. c4 {[%emt 0:13:25]} c5 {[%emt 0:00:00]} 20. Rad1 {[%emt 0:
05:34]} Qc7 {[%emt 0:03:06]} 21. Rfe1 {[%emt 0:03:23]} Nc6 {[%emt 0:05:13]} 22.
Qc2 {[%emt 0:17:08]} (22. d5 $1 $16 {Hoping for Bxg7.} Bxb2 23. Qxb2 exd5 24.
cxd5) 22... e5 {[%emt 0:14:16]} 23. d5 {[%emt 0:00:00]} e4 {[%emt 0:01:23]
[%csl Yd3,Yf3]} 24. Bxg7 {[%emt 0:08:44]} Kxg7 {[%emt 0:00:28]} 25. dxc6 {
[%emt 0:01:28][%cal Yg3g4]} exf3 {[%emt 0:05:22]} 26. Nf2 {[%emt 0:01:51]} Re6
{[%emt 0:03:36]} (26... Qxc6 $11 27. e4 Nh6) 27. e4 $16 {[%emt 0:01:54][%cal
Ye3e4,Ye4f5]} Rbe8 {[%emt 0:07:14]} 28. Qc3+ {[%emt 0:01:13]} Kf8 {[%emt 0:04:
41][%cal Rf5e4] [#]} 29. exf5 {[%emt 0:00:43] White is more active.} ({
Inferior is} 29. Qxf3 Nd8 $15) 29... Rxe1+ {[%emt 0:00:00]} 30. Rxe1 {[%emt 0:
00:06]} Rxe1+ {[%emt 0:00:39]} 31. Qxe1 {[%emt 0:00:00] And now fxg6 would win.
} gxf5 {[%emt 0:00:19] Endgame KQN-KQN} 32. Qe6 {[%emt 0:03:06]} Qe7 {[%emt 0:
00:43] [#]} (32... Qxc6 $142 33. Qxf5 d5 34. cxd5 Qe8) 33. Qxe7+ $1 $18 {
[%emt 0:00:49]} Kxe7 {[%emt 0:00:04]} 34. Nd1 {[%emt 0:00:55]} Ke6 $2 {[%emt 0:
07:12]} (34... Kd8 35. Ne3 Kc7 36. Nxf5 Kxc6) 35. Ne3 {[%emt 0:01:02] White is
clearly winning.} Nh6 {[%emt 0:00:29]} 36. Kf2 {[%emt 0:03:03]} Ng8 {[%emt 0:
00:06]} (36... Ke7 $142 37. h3 Kd8) 37. Nd5 {[%emt 0:02:12] Weighted Error
Value: White=0.21 (precise) /Black=0.40} 1-0

[Event "44th Chess Olympiad Women 2022"]
[Site "Chennai"]
[Date "2022.08.07"]
[Round "9.8"]
[White "Lanchava, Tea"]
[Black "Andric, Jelena"]
[Result "1-0"]
[WhiteElo "2257"]
[BlackElo "1993"]
[Annotator "RC"]
[PlyCount "69"]
[EventDate "2022.??.??"]
[TimeControl "60"]

1. c4 {[%emt 0:00:04]} c6 {[%emt 0:00:40]} 2. Nf3 {[%emt 0:00:38]} d5 {[%emt 0:
00:00]} 3. e3 {[%emt 0:00:26]} Nf6 {[%emt 0:01:21]} 4. Nc3 {[%emt 0:00:43]} Bg4
{[%emt 0:03:12]} 5. Qb3 {[%emt 0:00:19]} Qb6 {[%emt 0:02:11]} 6. Ne5 {[%emt 0:
00:00]} Bc8 {[%emt 0:03:33]} 7. Qxb6 {[%emt 0:08:58]} axb6 {[%emt 0:00:16]} 8.
cxd5 {[%emt 0:00:07]} Nxd5 {[%emt 0:01:18]} 9. Nxd5 {[%emt 0:00:26]} cxd5 {
[%emt 0:00:14]} 10. Bb5+ {[%emt 0:00:38]} Nd7 {[%emt 0:01:02]} 11. d4 {[%emt 0:
00:00]} e6 {[%emt 0:03:38]} 12. O-O {[%emt 0:09:30]} Bd6 {[%emt 0:11:44]} 13.
Bd2 {[%emt 0:07:29]} Ke7 {[%emt 0:07:02]} 14. Bc3 {[%emt 0:04:44]} f6 {[%emt 0:
00:00]} 15. Nd3 {[%emt 0:00:39]} Nb8 {[%emt 0:04:33]} 16. Nb4 {[%emt 0:10:35]}
Bd7 {[%emt 0:03:12]} 17. Bd3 {[%emt 0:00:05]} Bc6 {[%emt 0:05:39]} 18. f3 {
[%emt 0:00:47]} b5 {[%emt 0:20:49]} 19. e4 {[%emt 0:02:48]} Na6 {[%emt 0:06:53]
} 20. Nc2 {[%emt 0:00:45]} dxe4 {[%emt 0:03:05]} 21. fxe4 {[%emt 0:01:16]} b4 {
[%emt 0:04:41]} 22. Bd2 {[%emt 0:00:31]} Kf7 {[%emt 0:06:17]} 23. Rae1 {
[%emt 0:03:15]} b5 {[%emt 0:03:23]} 24. Ne3 {[%emt 0:04:07]} Nc7 {[%emt 0:00:
00]} 25. e5 {[%emt 0:04:49]} Be7 {[%emt 0:00:16]} 26. exf6 {[%emt 0:00:41]}
gxf6 {[%emt 0:00:10]} 27. Rc1 {[%emt 0:00:06]} Ra6 {[%emt 0:00:49]} 28. Ng4 {
[%emt 0:00:08]} Bd6 {[%emt 0:00:58]} 29. Rxf6+ {[%emt 0:01:08]} Ke7 {[%emt 0:
00:00]} 30. Bg5 {[%emt 0:01:17]} Kd7 {[%emt 0:01:05]} 31. Rf7+ {[%emt 0:03:58]}
Ke8 {[%emt 0:00:30]} 32. Rg7 {[%emt 0:01:08]} Nd5 {[%emt 0:00:32]} 33. Bxb5 {
[%emt 0:01:07]} Kf8 {[%emt 0:00:47]} 34. Bxa6 {[%emt 0:00:20]} Kxg7 {[%emt 0:
00:00]} 35. Rxc6 {[%emt 0:00:15]} 1-0

[Event "44th Chess Olympiad Women 2022"]
[Site "Chennai"]
[Date "2022.08.07"]
[Round "9.8"]
[White "Peng, Zhaoqin"]
[Black "Agrest, Inna"]
[Result "1/2-1/2"]
[WhiteElo "2349"]
[BlackElo "2217"]
[Annotator "RC"]
[PlyCount "124"]
[EventDate "2022.??.??"]
[TimeControl "60"]

1. d4 {[%emt 0:00:05]} Nf6 {[%emt 0:00:11]} 2. c4 {[%emt 0:00:05]} g6 {[%emt 0:
00:00]} 3. Nc3 {[%emt 0:00:05]} Bg7 {[%emt 0:00:09]} 4. e4 {[%emt 0:00:06]} d6
{[%emt 0:00:27]} 5. Be2 {[%emt 0:00:06]} O-O {[%emt 0:00:49]} 6. Be3 {[%emt 0:
00:00]} Nbd7 {[%emt 0:04:06]} 7. Nf3 {[%emt 0:04:52]} e5 {[%emt 0:01:40]} 8.
O-O {[%emt 0:00:47]} Qe7 {[%emt 0:02:15]} 9. Qc2 {[%emt 0:03:41]} c6 {[%emt 0:
00:00]} 10. d5 {[%emt 0:05:10]} c5 {[%emt 0:01:21]} 11. Ne1 {[%emt 0:05:12]}
Kh8 {[%emt 0:02:46]} 12. Nd3 {[%emt 0:19:22]} Ng8 {[%emt 0:01:53]} 13. Qd2 {
[%emt 0:05:08]} f5 {[%emt 0:02:32]} 14. exf5 {[%emt 0:00:32]} gxf5 {[%emt 0:00:
00]} 15. f4 {[%emt 0:02:18]} e4 {[%emt 0:13:28]} 16. Nf2 {[%emt 0:00:16]} Ngf6
{[%emt 0:00:40]} 17. Kh1 {[%emt 0:04:38]} Rg8 {[%emt 0:02:55]} 18. Rg1 {
[%emt 0:02:49]} Nf8 {[%emt 0:02:59]} 19. a4 {[%emt 0:03:25]} Bd7 {[%emt 0:00:
00]} 20. a5 {[%emt 0:02:53]} Re8 {[%emt 0:03:16]} 21. Rab1 {[%emt 0:00:38]} Ng6
{[%emt 0:04:57]} 22. g3 {[%emt 0:00:14]} Ng4 {[%emt 0:06:10]} 23. Nxg4 {
[%emt 0:02:30]} fxg4 {[%emt 0:00:09]} 24. b4 {[%emt 0:00:57]} b6 {[%emt 0:00:
00]} 25. bxc5 {[%emt 0:00:46]} bxc5 {[%emt 0:00:05]} 26. Rb7 {[%emt 0:00:21]}
h5 {[%emt 0:08:35]} 27. Rxa7 {[%emt 0:08:43]} Ra8 {[%emt 0:02:23]} 28. Rxa8 {
[%emt 0:01:24]} Rxa8 {[%emt 0:00:01]} 29. Nb5 {[%emt 0:01:17]} Bc8 {[%emt 0:00:
00]} 30. h3 {[%emt 0:07:06]} Qd8 {[%emt 0:06:33]} 31. hxg4 {[%emt 0:00:41]}
hxg4 {[%emt 0:00:24]} 32. Kg2 {[%emt 0:05:37]} Ne7 {[%emt 0:01:49]} 33. Rh1+ {
[%emt 0:03:26]} Kg8 {[%emt 0:00:04]} 34. Rh5 {[%emt 0:02:14]} Nf5 {[%emt 0:00:
00]} 35. Rg5 {[%emt 0:01:24]} Rxa5 {[%emt 0:01:00]} 36. Rxf5 {[%emt 0:04:16]}
Rxb5 {[%emt 0:01:35]} 37. Rg5 {[%emt 0:01:41]} Rb7 {[%emt 0:02:00]} 38. Qc2 {
[%emt 0:01:16]} Qf6 {[%emt 0:00:52]} 39. Kf2 {[%emt 0:02:28]} Kf8 {[%emt 0:00:
00]} 40. Qa4 {[%emt 0:01:04]} Re7 {[%emt 0:01:07]} 41. Qa8 {[%emt 0:30:42]} Re8
{[%emt 0:06:15]} 42. Qc6 {[%emt 0:00:00]} Qe7 {[%emt 0:08:06]} 43. Rg6 {
[%emt 0:00:00]} Rd8 {[%emt 0:01:19]} 44. Bxg4 {[%emt 0:00:00]} Bxg4 {[%emt 0:
00:00]} 45. Rxg4 {[%emt 0:00:00]} Qa7 {[%emt 0:00:43]} 46. Kg2 {[%emt 0:07:53]}
Qa2+ {[%emt 0:03:42]} 47. Kh3 {[%emt 0:00:00]} Qa1 {[%emt 0:01:28]} 48. Rg5 {
[%emt 0:00:00]} Bf6 {[%emt 0:02:03]} 49. Kg4 {[%emt 0:00:00]} Bxg5 {[%emt 0:00:
00]} 50. fxg5 {[%emt 0:00:00]} Qd1+ {[%emt 0:02:16]} 51. Kf5 {[%emt 0:00:00]}
Qf1+ {[%emt 0:01:53]} 52. Bf4 {[%emt 0:00:00]} Qh3+ {[%emt 0:00:29]} 53. g4 {
[%emt 0:00:00]} Kg8 {[%emt 0:00:31]} 54. Bxd6 {[%emt 0:00:00]} Qf3+ {[%emt 0:
00:00]} 55. Ke5 {[%emt 0:00:00]} Qg3+ {[%emt 0:00:14]} 56. Kxe4 {[%emt 0:00:00]
} Qxg4+ {[%emt 0:00:54]} 57. Bf4 {[%emt 0:00:14]} Qe2+ {[%emt 0:00:19]} 58. Be3
{[%emt 0:00:16]} Qxc4+ {[%emt 0:00:12]} 59. Ke5 {[%emt 0:00:08]} Qc3+ {[%emt 0:
00:00]} 60. Ke4 {[%emt 0:00:22]} Qc4+ {[%emt 0:00:37]} 61. Ke5 {[%emt 0:00:06]}
Qc3+ {[%emt 0:00:39]} 62. Ke4 {[%emt 0:00:02]} Qc4+ {[%emt 0:00:39]} 1/2-1/2

[Event "44th Chess Olympiad Women 2022"]
[Site "Chennai"]
[Date "2022.08.07"]
[Round "9.9"]
[White "Borosova, Zuzana"]
[Black "Sebag, Marie"]
[Result "1-0"]
[WhiteElo "2277"]
[BlackElo "2447"]
[Annotator "TA"]
[PlyCount "115"]
[EventDate "2022.??.??"]
[TimeControl "60"]

{[%evp 12,115,7,9,40,17,10,0,7,17,15,14,5,7,0,0,2,4,12,27,21,20,10,12,58,41,60,
-119,-124,-145,-105,-186,0,-169,-169,-182,-178,-147,-130,-125,-119,-106,-56,
-66,-62,-66,-38,-82,87,84,86,83,89,102,114,78,166,147,327,313,339,340,373,357,
375,377,360,351,403,348,539,570,516,404,398,396,355,370,465,380,547,548,526,
445,425,164,168,195,568,566,543,541,559,470,771,752,818,807,1157,1142,1139,579,
1090,1056,982,970]} 1. e4 {[%emt 0:00:03]} c5 {[%emt 0:00:34]} 2. Nf3 {[%emt 0:
00:00]} d6 {[%emt 0:00:07]} 3. d4 {[%emt 0:00:05]} cxd4 {[%emt 0:00:04]} 4.
Nxd4 {[%emt 0:00:04]} Nf6 {[%emt 0:00:06]} 5. Nc3 {[%emt 0:00:04]} a6 {[%emt 0:
00:00]} 6. h3 {[%emt 0:00:46]} e5 {[%emt 0:05:02]} 7. Nde2 {[%emt 0:00:18]} h5
{[%emt 0:00:36] B90: Sicilian Najdorf: Unusual White 6th moves, 6 Be3 Ng4 and
6 Be3 e5.} 8. Bg5 {[%emt 0:01:45]} Be6 {[%emt 0:04:07]} 9. Bxf6 {[%emt 0:00:31]
} Qxf6 {[%emt 0:01:30] The position is equal.} 10. Nd5 {[%emt 0:00:11]} Qd8 {
[%emt 0:01:23]} 11. Qd3 {[%emt 0:00:11]} Nd7 {[%emt 0:17:29]} 12. O-O-O {
[%emt 0:01:02]} g6 {[%emt 0:02:20]} 13. Kb1 {[%emt 0:00:14]} Nc5 {[%emt 0:00:
00]} 14. Qa3 $1 {[%emt 0:01:02] is currently scoring better than 14. Qf3.} Bg7
{[%emt 0:05:12]} (14... Bh6 {seems wilder.} 15. g4 Kf8 16. Bg2 hxg4 17. hxg4
Kg7) 15. h4 {[%emt 0:00:19]} b5 {[%emt 0:11:58]} 16. Nec3 {[%emt 0:00:00]} O-O
{[%emt 0:01:41]} 17. f3 {[%emt 0:00:49]} Rb8 {[%emt 0:03:19]} (17... f5 $11)
18. b4 $14 {[%emt 0:07:35]} a5 {[%emt 0:01:17] [#]} 19. Nxb5 $146 {[%emt 0:10:
09] Pair of Knights!} (19. bxc5 b4 20. Qa4 bxc3+ 21. Ka1 dxc5 $15) (19. Qxa5
$14 {stays ahead.} Qxa5 20. bxa5) ({Predecessor:} 19. Qxa5 Qxa5 20. bxa5 b4 21.
Nb5 Na4 22. a6 Nc3+ 23. Ndxc3 bxc3 24. Rxd6 Bh6 25. a7 {1-0 (40) Maghsoodloo,P
(2698)-Praggnanandhaa,R (2608) Chess.com INT 2021}) 19... axb4 $17 {[%emt 0:03:
30]} 20. Qxb4 {[%emt 0:01:11]} Na6 {[%emt 0:06:25]} 21. Qb3 {[%emt 0:21:06]} (
21. Qb2 $17 {was worth a try.}) 21... Nc7 $2 {[%emt 0:07:49]} 22. c4 {[%emt 0:
05:10]} (22. Nbxc7 $11 {and White stays safe.} Rxb3+ 23. cxb3) 22... Nxd5 $19 {
[%emt 0:03:02]} 23. cxd5 {[%emt 0:02:25]} Bd7 {[%emt 0:00:08] Hoping for ...
Qa5.} 24. Qb4 {[%emt 0:10:17] Prevents Qa5.} Qb6 {[%emt 0:01:26][%cal Rd7b5]
Black has strong compensation.} 25. a4 {[%emt 0:00:48]} Ra8 {[%emt 0:03:12] ...
Bh6 is the strong threat.} 26. Rd2 {[%emt 0:10:17]} (26. Qxd6 $2 Qxd6 27. Nxd6
Rfb8+ 28. Nb5 Rxa4 $19) 26... Rfc8 {[%emt 0:02:35]} (26... Bh6 $17 27. Rb2 Be3)
27. Rb2 $15 {[%emt 0:06:09]} Bf8 {[%emt 0:01:08]} (27... Qe3 28. Bc4 $11) 28.
Bd3 {[%emt 0:03:04]} Rc5 {[%emt 0:01:14]} 29. Rd1 {[%emt 0:04:38]} Qa5 $2 {
[%emt 0:01:46]} (29... Bh6 $17 {keeps the pressure on.}) 30. Qxa5 $16 {[%emt 0:
01:26] White is more active.} Rxa5 {[%emt 0:00:06]} 31. Rb4 {[%emt 0:00:57]} f5
{[%emt 0:01:18]} 32. Kb2 {[%emt 0:05:45][%cal Yb1b2,Yb2b3,Yb3b4]} Be7 {[%emt 0:
01:52]} 33. Rh1 {[%emt 0:00:15]} Kg7 {[%emt 0:01:40] [#]} (33... Ra8 $16) 34.
Kb3 $1 $18 {[%emt 0:01:06]} f4 $2 {[%emt 0:00:47]} (34... Rc8 $16 35. g3 Raa8)
35. Na3 {[%emt 0:01:59]} Ra7 {[%emt 0:02:26] [#]} 36. Bb5 $1 {[%emt 0:00:10]}
Bc8 {[%emt 0:01:11]} 37. Rc4 {[%emt 0:00:33]} Rxc4 {[%emt 0:02:00]} 38. Nxc4 {
[%emt 0:00:12]} ({Less strong is} 38. Kxc4 Bd8 39. Kd3 Bb6 $18) 38... Kh6 {
[%emt 0:00:15]} 39. Kb4 {[%emt 0:00:00]} Bd8 {[%emt 0:01:03]} 40. a5 {[%emt 0:
01:40]} ({Don't take} 40. Nxd6 Be7 $18) 40... Bc7 {[%emt 0:02:03]} (40... g5
$142 41. Nxd6 Be7) 41. Rc1 {[%emt 0:00:00]} Bb7 {[%emt 0:03:57]} 42. Ra1 {
[%emt 0:05:15]} g5 {[%emt 0:03:30]} 43. hxg5+ {[%emt 0:02:56]} Kxg5 {[%emt 0:
00:05]} 44. Rh1 {[%emt 0:00:38]} ({Weaker is} 44. a6 Bc8 45. Na5 Bb6 $18) 44...
h4 {[%emt 0:07:49]} 45. Rc1 {[%emt 0:05:09]} Kf6 {[%emt 0:03:51]} (45... Bd8 {
is a better defense.} 46. a6 Bxa6) 46. Rc2 {[%emt 0:02:59]} Kg5 {[%emt 0:01:21]
} 47. Ra2 {[%emt 0:02:46]} Bc8 {[%emt 0:01:58]} 48. Ra4 $2 {[%emt 0:02:05]} (
48. Ra1) 48... h3 {[%emt 0:00:00]} 49. gxh3 {[%emt 0:00:02]} Bxh3 $2 {[%emt 0:
00:46]} (49... Kh4 {is tougher.} 50. a6 Kg3) 50. Ra1 {[%emt 0:00:14] White is
clearly winning.} Kf6 {[%emt 0:04:36]} 51. Rg1 {[%emt 0:00:17] Prevents Bg2.}
Ra8 {[%emt 0:00:51]} 52. Bc6 {[%emt 0:00:56]} Ra7 {[%emt 0:02:39]} (52... Rb8+
$142 53. Kc3 Bc8) 53. Nb6 {[%emt 0:01:52]} Kf7 {[%emt 0:01:28]} 54. Kb5 {
[%emt 0:00:09]} Bb8 {[%emt 0:00:00]} 55. a6 {[%emt 0:00:28]} Re7 {[%emt 0:00:
54]} 56. Bb7 {[%emt 0:01:07]} Ba7 {[%emt 0:00:31]} 57. Rh1 {[%emt 0:00:24]} Rc7
{[%emt 0:00:23]} 58. Bc6 {[%emt 0:00:18] Never resign too early! Weighted
Error Value: White=0.34/ Black=0.42} 1-0